fUSD/lending_fUSD_20250906
["ID","MTS","AMOUNT","RATE_DAILY","PERIOD"]
[383944491,1757189439470,-151.0,0.00025874,2]
[383944492,1757189439480,-600.0,0.00025874,2]
[383944493,1757189439489,-151.0,0.00025874,2]
[383944494,1757189439499,-151.0,0.00025874,2]
[383944495,1757189439509,-600.0,0.00025874,2]
[383944496,1757189439519,-151.0,0.00025874,2]
[383944497,1757189439529,-600.0,0.00025874,2]
[383944498,1757189439539,-151.0,0.00025874,2]
[383944499,1757189439549,-600.0,0.00025874,2]
[383944500,1757189439558,-151.0,0.00025874,2]
[383944501,1757189439568,-600.0,0.00025874,2]
[383944502,1757189439578,-151.0,0.00025874,2]
[383944503,1757189439588,-600.0,0.00025874,2]
[383944504,1757189439598,-151.0,0.00025874,2]
[383944505,1757189439608,-600.0,0.00025874,2]
[383944506,1757189439618,-151.0,0.00025874,2]
[383944507,1757189439627,-600.0,0.00025874,2]
[383944508,1757189439637,-151.0,0.00025874,2]
[383944509,1757189439646,-151.0,0.00025874,2]
[383944510,1757189439655,-151.0,0.00025874,2]
[383944511,1757189439665,-151.0,0.00025874,2]
[383944512,1757189439674,-151.0,0.00025874,2]
[383944513,1757189439684,-151.0,0.00025874,2]
[383944514,1757189439693,-151.0,0.00025874,2]
[383944515,1757189439703,-151.0,0.00025874,2]
[383944516,1757189439713,-151.0,0.00025874,2]
[383944517,1757189439723,-151.0,0.00025874,2]
[383944518,1757189439733,-151.0,0.00025874,2]
[383944519,1757189439742,-151.0,0.00025874,2]
[383944520,1757189439752,-151.0,0.00025874,2]
[383944521,1757189439761,-500.0,0.00025874,2]
[383944522,1757189439771,-500.0,0.00025874,2]
[383944523,1757189439781,-500.0,0.00025874,2]
[383944524,1757189439791,-244.88414888,0.00025874,2]
[383944525,1757189439801,-200.0,0.00025874,2]
[383944526,1757189439812,-200.0,0.00025874,2]
[383944527,1757189439823,-500.0,0.00025874,2]
[383944528,1757189439832,-500.0,0.00025874,2]
[383944529,1757189439842,-500.0,0.00025874,2]
[383944530,1757189439851,-500.0,0.00025874,2]
[383944531,1757189439861,-500.0,0.00025874,2]
[383944532,1757189439871,-500.0,0.00025874,2]
[383944533,1757189439880,-500.0,0.00025874,2]
[383944534,1757189439889,-500.0,0.00025874,2]
[383944535,1757189439899,-500.0,0.00025874,2]
[383944536,1757189439910,-500.0,0.00025874,2]
[383944537,1757189439919,-500.0,0.00025874,2]
[383944538,1757189439933,-500.0,0.00025874,2]
[383944539,1757189439943,-520.9,0.0002588,2]
[383944541,1757189439952,-520.9,0.0002588,2]
[383944542,1757189439962,-626.71013217,0.00025885,8]
[383944544,1757189439972,-67334.22774335,0.0002589,2]
[383944546,1757189439981,-1400.0,0.000259,9]
[383944548,1757189439991,-500.0,0.00025929,2]
[383944550,1757189440002,-500.0,0.00025984,2]
[383944552,1757189440011,-844.20968259,0.00025988,2]
[383944555,1757189440021,-13291.67777036,0.00025999,2]
[383944559,1757189440035,-1139.1,0.00026,2]
[383944561,1757189440045,-20912.62215776,0.00026024,2]
[383944563,1757189440055,-520.9,0.00026039,2]
[383944564,1757189440065,-500.0,0.00026039,2]
[383944565,1757189440075,-161.27224601,0.00026044,2]
[383944566,1757189440085,-1289.08005012,0.00026044,2]
[383944567,1757189440095,-1289.08005011,0.00026047,2]
[383944568,1757189440105,-3263.48701257,0.00026049,2]
[383944569,1757189440115,-1289.08005011,0.00026049,2]
[383944570,1757189440126,-1000.0,0.00026068,2]
[383944571,1757189440136,-963.60515785,0.00026068,2]
[383944572,1757189440146,-500.0,0.00026094,2]
[383944573,1757189440156,-596.49279959,0.00026097,2]
[383944574,1757189440165,-1682.6308866,0.000261,2]
[383944575,1757189440176,-1222.0,0.0002611,2]
[383944576,1757189440185,-10294.0,0.0002611,2]
[383944577,1757189440195,-6711.0,0.0002611,2]
[383944578,1757189440205,-1682.6308866,0.00026113,2]
[383944579,1757189440215,-520.9,0.00026114,2]
[383944580,1757189440225,-151.0,0.00026121,7]
[383944581,1757189440236,-500.0,0.00026123,2]
[383944582,1757189440246,-45431.0339382,0.00026124,2]
[383944583,1757189440255,-1362.42658379,0.00026124,2]
[383944584,1757189440265,-164.69,0.00026128,2]
[383944585,1757189440275,-19073.9721731,0.00026129,2]
[383944586,1757189440284,-200.0,0.00026134,2]
[383944587,1757189440294,-297.652147,0.00026134,2]
[383944588,1757189440304,-13624.2658379,0.00026134,2]
[383944589,1757189440314,-151.8,0.00026139,2]
[383944590,1757189440328,-151.8,0.00026139,2]
[383944591,1757189440338,-151.8,0.00026139,2]
[383944592,1757189440348,-151.8,0.00026139,2]
[383944593,1757189440358,-1255.05079662,0.00026139,2]
[383944594,1757189440367,-151.0,0.00026141,7]
[383944595,1757189440377,-1091.50748333,0.00026143,10]
[383944596,1757189440387,-300.0,0.00026143,10]
[383944597,1757189440397,-300.0,0.00026143,10]
[383944598,1757189440408,-300.0,0.00026143,10]
[383944599,1757189440419,-300.0,0.00026143,10]
[383944600,1757189440428,-300.0,0.00026143,10]
[383944601,1757189440439,-666.0,0.00026143,2]
[383944602,1757189440448,-349036.1639637,0.00026144,2]
[383944603,1757189440462,-124164.8938676,0.00026144,2]
[383944604,1757189440472,-151.0,0.00026144,7]
[383944605,1757189440482,-151.0,0.00026144,7]
[383944606,1757189440492,-151.0,0.00026144,7]
[383944607,1757189440502,-151.0,0.00026144,7]
[383944608,1757189440512,-151.0,0.00026144,7]
[383944609,1757189440522,-151.0,0.00026144,7]
[383944610,1757189440531,-151.0,0.00026144,7]
[383944611,1757189440541,-227.718672,0.00026144,7]
[383944612,1757189440551,-227.718672,0.00026144,7]
[383944613,1757189440561,-227.718672,0.00026144,7]
[383944614,1757189440570,-227.718672,0.00026144,7]
[383944615,1757189440580,-151.596769,0.00026144,7]
[383944616,1757189440590,-61156.4345437,0.00026144,2]
[383944617,1757189440600,-151.0,0.00026146,7]
[383944618,1757189440610,-151.0,0.00026146,7]
[383944619,1757189440621,-151.0,0.00026146,7]
[383944620,1757189440634,-151.0,0.00026146,7]
[383944621,1757189440643,-666.0,0.00026148,2]
[383944622,1757189440654,-300.0,0.00026148,10]
[383944623,1757189440664,-300.0,0.00026148,10]
[383944624,1757189440673,-300.0,0.00026148,10]
[383944625,1757189440684,-300.0,0.00026148,10]
[383944626,1757189440694,-666.0,0.00026148,2]
[383944627,1757189440704,-272.07666758,0.00026148,2]
[383944628,1757189440714,-300.0,0.00026148,10]
[383944629,1757189440725,-1313809.77036341,0.00026149,2]
[383944630,1757189440735,-151.0,0.00026149,7]
[383944631,1757189440746,-151.0,0.00026149,7]
[383944632,1757189440755,-151.0,0.00026149,7]
[383944633,1757189440765,-151.0,0.00026149,7]
[383944634,1757189440775,-151.0,0.00026149,7]
[383944635,1757189440785,-151.0,0.00026149,7]
[383944636,1757189440794,-300.0,0.00026149,7]
[383944637,1757189440804,-187.469581,0.00026149,7]
[383944638,1757189440814,-151.0,0.00026149,7]
[383944639,1757189440824,-187.469581,0.00026149,7]
[383944640,1757189440834,-151.0,0.00026149,7]
[383944641,1757189440843,-187.469581,0.00026149,7]
[383944642,1757189440852,-151.0,0.00026149,7]
[383944643,1757189440862,-187.469581,0.00026149,7]
[383944644,1757189440872,-151.0,0.00026149,5]
[383944645,1757189440882,-151.0,0.00026149,7]
[383944646,1757189440892,-151.0,0.00026149,7]
[383944647,1757189440902,-151.0,0.00026149,7]
[383944648,1757189440911,-151.0,0.00026149,7]
[383944649,1757189440922,-151.0,0.00026149,7]
[383944650,1757189440932,-151.0,0.00026149,7]
[383944651,1757189440942,-151.0,0.00026149,7]
[383944652,1757189440951,-151.0,0.00026149,7]
[383944653,1757189440961,-151.0,0.00026149,7]
[383944654,1757189440971,-151.0,0.00026149,7]
[383944655,1757189440981,-151.0,0.00026149,7]
[383944656,1757189440991,-151.0,0.00026149,7]
[383944657,1757189441000,-151.0,0.00026149,7]
[383944658,1757189441010,-151.0,0.00026149,7]
[383944659,1757189441020,-151.0,0.00026149,7]
[383944660,1757189441031,-480.885614,0.00026149,7]
[383944661,1757189441040,-480.885614,0.00026149,7]
[383944662,1757189441050,-151.0,0.00026149,7]
[383944663,1757189441059,-480.885614,0.00026149,7]
[383944664,1757189441070,-151.0,0.00026149,7]
[383944665,1757189441079,-480.885614,0.00026149,7]
[383944666,1757189441089,-154.349297,0.00026149,7]
[383944667,1757189441099,-154.349297,0.00026149,7]
[383944668,1757189441109,-154.349297,0.00026149,7]
[383944669,1757189441119,-154.349297,0.00026149,7]
[383944670,1757189441128,-152.0,0.00026149,3]
[383944671,1757189441138,-152.0,0.00026149,3]
[383944672,1757189441148,-152.0,0.00026149,3]
[383944673,1757189441158,-152.0,0.00026149,3]
[383944674,1757189441168,-3011.38049103,0.00026149,7]
[383944675,1757189441177,-514.85095374,0.00026149,7]
[383944676,1757189441187,-151.0,0.00026149,7]
[383944677,1757189441196,-151.0,0.00026149,7]
[383944678,1757189441206,-186.578004,0.00026149,7]
[383944679,1757189441216,-227.718672,0.00026149,7]
[383944680,1757189441225,-160.0,0.00026149,7]
[383944681,1757189441235,-227.718672,0.00026149,7]
[383944682,1757189441246,-227.718672,0.00026149,7]
[383944683,1757189441256,-227.718672,0.00026149,7]
[383944684,1757189441266,-160.0,0.00026149,7]
[383944685,1757189441276,-546.0,0.00026149,3]
[383944686,1757189441285,-546.0,0.00026149,3]
[383944687,1757189441295,-151.0,0.00026149,7]
[383944688,1757189441305,-546.0,0.00026149,3]
[383944689,1757189441314,-546.0,0.00026149,3]
[383944690,1757189441328,-546.0,0.00026149,3]
[383944691,1757189441338,-546.0,0.00026149,3]
[383944692,1757189441350,-500.0,0.00026149,2]
[383944693,1757189441361,-300.0,0.00026154,10]
[383944694,1757189441370,-666.0,0.00026154,2]
[383944695,1757189441380,-20753.9898214,0.00026155,2]
[383944696,1757189441391,-500.0,0.00026173,2]
[383944697,1757189441400,-500.0,0.00026173,2]
[383944698,1757189441409,-500.0,0.00026173,2]
[383944699,1757189441420,-541.98064088,0.00026173,2]
[383944700,1757189441429,-500.0,0.00026173,2]
[383944701,1757189441442,-500.0,0.00026173,2]
[383944702,1757189441454,-343.1666302,0.00026173,2]
[383944703,1757189441464,-500.0,0.00026173,2]
[383944704,1757189441473,-300.2177612,0.00026173,2]
[383944705,1757189441483,-159.536288,0.00026173,2]
[383944706,1757189441493,-500.0,0.00026173,2]
[383944707,1757189441504,-216.83076564,0.00026173,2]
[383944708,1757189441513,-500.98008459,0.00026173,2]
[383944709,1757189441524,-500.0,0.00026173,2]
[383944710,1757189441533,-524.88728886,0.00026173,2]
[383944711,1757189441543,-500.0,0.00026173,2]
[383944712,1757189441553,-501.96115383,0.00026173,2]
[383944713,1757189441562,-159.5506592,0.00026173,2]
[383944714,1757189441572,-500.0,0.00026173,2]
[383944715,1757189441582,-164.02018487,0.00026173,2]
[383944716,1757189441592,-315.98,0.000262,7]
[383944717,1757189441601,-1039.8,0.000262,7]
[383944718,1757189441611,-500.0,0.00026204,2]
[383944719,1757189441620,-500.0,0.00026259,2]
[383944720,1757189441630,-2093.01,0.00026279,2]
[383944721,1757189441640,-500.0,0.00026314,2]
[383944722,1757189441650,-405.86,0.00026353,2]
[383944723,1757189441661,-500.0,0.00026369,2]
[383944724,1757189441671,-1000.0,0.00026395,2]
[383944725,1757189441681,-1000.0,0.00026421,2]
[383944726,1757189441690,-504.18433716,0.00026421,2]
[383944727,1757189441699,-1119.44038958,0.00026421,2]
[383944728,1757189441709,-1000.0,0.00026421,2]
[383944729,1757189441718,-1000.0,0.00026421,2]
[383944730,1757189441728,-1000.0,0.00026421,2]
[383944731,1757189441737,-798.60702229,0.00026421,2]
[383944732,1757189441747,-1000.0,0.00026421,2]
[383944733,1757189441757,-500.56041119,0.00026421,2]
[383944734,1757189441766,-293.31128108,0.00026421,2]
[383944735,1757189441776,-200.0,0.00026422,2]
[383944736,1757189441786,-600.0,0.00026422,2]
[383944737,1757189441796,-200.0,0.00026422,2]
[383944738,1757189441806,-500.0,0.00026424,2]
[383944739,1757189441815,-500.0,0.00026479,2]
[383944740,1757189441825,-502.93527942,0.00026721,2]
[383944741,1757189441835,-1000.0,0.00026721,2]
[383944742,1757189441845,-432.52438624,0.00026721,2]
[383944743,1757189441855,-1000.0,0.00026721,2]
[383944745,1757189441865,-1000.0,0.00026721,2]
[383944747,1757189441875,-500.0,0.00026721,2]
[383944749,1757189441886,-409.3417178,0.00026721,2]
[383944751,1757189441896,-1000.0,0.00026721,2]
[383944753,1757189441905,-1500.0,0.00026968,2]
[383944754,1757189441916,-1500.0,0.00026968,2]
[383944755,1757189441925,-1500.0,0.00026968,2]
[383944756,1757189441935,-1513.67802562,0.00026968,2]
[383944757,1757189441946,-1500.0,0.00026968,2]
[383944758,1757189441955,-200.0,0.0002697,2]
[383944759,1757189441965,-600.0,0.0002697,2]
[383944760,1757189441974,-200.0,0.0002697,2]
[383944761,1757189441984,-392.71712272,0.00027,2]
[383944762,1757189441994,-20912.62215767,0.00027033,2]
[383944763,1757189442007,-151.8,0.00027128,2]
[383944764,1757189442017,-521.0,0.00027137,2]
[383944765,1757189442027,-13291.67777036,0.00027138,2]
[383944766,1757189442037,-405.22954556,0.00027266,2]
[383944767,1757189442047,-427.77934165,0.00027268,2]
[383944768,1757189442056,-1500.0,0.00027268,2]
[383944769,1757189442066,-1500.0,0.00027268,2]
[383944770,1757189442076,-1000.0,0.00027285,2]
[383944771,1757189442087,-1139.1,0.000273,2]
[383944772,1757189442097,-200.25225,0.0002732,2]
[383944773,1757189442107,-500.0,0.00027397,2]
[383944774,1757189442118,-529.28738737,0.00027397,2]
[383944775,1757189442127,-500.0,0.00027397,2]
[383944776,1757189442137,-500.0,0.00027397,2]
[383944777,1757189442147,-500.0,0.00027397,2]
[383944778,1757189442156,-500.0,0.00027397,2]
[383944779,1757189442166,-500.0,0.00027397,2]
[383944780,1757189442175,-150.0,0.00027397,2]
[383944781,1757189442185,-300.0,0.00027397,2]
[383944782,1757189442195,-2122.52,0.00027397,2]
[383944783,1757189442205,-234.31,0.00027397,2]
[383944784,1757189442214,-382.61,0.00027397,2]
[383944785,1757189442224,-511.56,0.00027397,2]
[383944786,1757189442234,-150.99,0.00027397,2]
[383944787,1757189442244,-9999.99,0.00027397,2]
[383944788,1757189442253,-999.99,0.00027397,2]
[383944789,1757189442521,-619.61,0.00027425,30]
[383944790,1757189442532,-2351.0,0.00027477,2]
[383944791,1757189442541,-1712.0757871,0.00027516,5]
[383944792,1757189442551,-1163.95661158,0.00027516,5]
[383944793,1757189442562,-826.29267021,0.00027516,5]
[383944794,1757189442571,-467.92862254,0.00027516,5]
[383944795,1757189442581,-600.0,0.00027518,2]
[383944796,1757189442592,-252.52,0.00027575,2]
[383944797,1757189442602,-460.62,0.00027575,2]
[383944798,1757189442612,-405.86,0.00027608,2]
[383944799,1757189442622,-587.0,0.00027752,2]
[383944800,1757189442632,-2000.0,0.00027816,5]
[383944801,1757189442642,-2000.0,0.00027816,5]
[383944802,1757189442651,-2200.96312224,0.00027827,8]
[383944803,1757189442661,-281.14,0.00028,2]
[383944804,1757189442671,-264.34114542,0.00028,2]
[383944805,1757189442681,-20912.62215767,0.00028042,2]
[383944806,1757189442690,-164.69,0.00028138,2]
[383944807,1757189442700,-514.85095374,0.00028207,2]
[383944808,1757189442709,-160.0,0.00028207,2]
[383944809,1757189442719,-160.0,0.00028207,2]
[383944810,1757189442728,-212.67823062,0.00028207,2]
[383944811,1757189442737,-13291.67777036,0.00028278,2]
[383944812,1757189442747,-483.80293313,0.00028364,5]
[383944813,1757189442756,-2500.0,0.00028364,5]
[383944814,1757189442766,-152.35,0.00028401,2]
[383944815,1757189442775,-1039.8,0.000286,7]
[383944816,1757189442785,-666.0,0.00028766,10]
[383944817,1757189442795,-300.0,0.00028766,10]
[383944818,1757189442804,-300.0,0.00028766,10]
[383944819,1757189442813,-666.0,0.00028766,10]
[383944820,1757189442822,-1421.45,0.00028767,2]
[383944821,1757189442831,-1421.45,0.00028767,2]
[383944822,1757189442840,-1421.45,0.00028767,2]
[383944823,1757189442849,-1421.45,0.00028767,2]
[383944824,1757189442859,-1421.45,0.00028767,2]
[383944825,1757189442868,-1421.45,0.00028767,2]
[383944827,1757189442877,-1421.45,0.00028767,2]
[383944828,1757189442887,-1421.45,0.00028767,2]
[383944829,1757189442896,-1421.45,0.00028767,2]
[383944830,1757189442906,-1421.45,0.00028767,2]
[383944831,1757189442916,-1421.45,0.00028767,2]
[383944832,1757189442925,-1421.45,0.00028767,2]
[383944833,1757189442935,-1421.45,0.00028767,2]
[383944834,1757189442944,-1421.45,0.00028767,2]
[383944835,1757189442953,-1421.45,0.00028767,2]
[383944836,1757189442964,-1421.45,0.00028767,2]
[383944837,1757189442974,-1421.45,0.00028767,2]
[383944838,1757189442983,-1421.45,0.00028767,2]
[383944839,1757189442992,-1421.45,0.00028767,2]
[383944840,1757189443002,-1421.45,0.00028767,2]
[383944841,1757189443011,-1421.45,0.00028767,2]
[383944842,1757189443021,-1421.45,0.00028767,2]
[383944843,1757189443030,-1421.45,0.00028767,2]
[383944844,1757189443041,-1421.52932969,0.00028767,2]
[383944845,1757189443050,-3492.45463348,0.00028773,2]
[383944846,1757189443059,-151.0,0.00028797,7]
[383944847,1757189443069,-315.98,0.000288,7]
[383944848,1757189443079,-9733.02,0.000288,7]
[383944849,1757189443088,-9296.99,0.000288,2]
[383944850,1757189443097,-405.86,0.00028863,2]
[383944851,1757189443107,-1356.06284476,0.00028912,5]
[383944852,1757189443117,-3011.38049103,0.00029,10]
[383944853,1757189443126,-20912.62215767,0.00029051,2]
[383944854,1757189443135,-4303.0,0.00029214,5]
[383944855,1757189443145,-161.272246,0.00029384,2]
[383944856,1757189443155,-13291.67777036,0.00029417,2]
[383944857,1757189443164,-3873.66848895,0.00029434,2]
[383944858,1757189443173,-300.0,0.00029533,10]
[383944859,1757189443183,-423.4246746,0.00029533,10]
[383944860,1757189443192,-666.0,0.00029533,10]
[383944861,1757189443202,-77880.4951628,0.00029534,2]
[383944862,1757189443211,-27704.9326534,0.00029534,2]
[383944863,1757189443221,-154.349297,0.00029534,7]
[383944864,1757189443230,-154.349297,0.00029534,7]
[383944865,1757189443239,-154.349297,0.00029534,7]
[383944866,1757189443248,-154.349297,0.00029534,7]
[383944867,1757189443257,-300.0,0.00029534,5]
[383944868,1757189443267,-300.0,0.00029534,5]
[383944869,1757189443275,-300.0,0.00029534,5]
[383944870,1757189443285,-300.0,0.00029534,5]
[383944871,1757189443294,-151.0,0.00029534,7]
[383944872,1757189443303,-151.0,0.00029534,7]
[383944873,1757189443312,-227.718672,0.00029534,7]
[383944874,1757189443321,-227.718672,0.00029534,7]
[383944875,1757189443331,-227.718672,0.00029534,7]
[383944876,1757189443340,-227.718672,0.00029534,7]
[383944877,1757189443350,-500.0,0.00029573,5]
[383944878,1757189443362,-500.0,0.00029573,5]
[383944880,1757189443371,-160.47450641,0.00029573,5]
[383944882,1757189443381,-500.0,0.00029573,5]
[383944884,1757189443391,-167.16424149,0.00029573,5]
[383944886,1757189443401,-500.0,0.00029573,5]
[383944888,1757189443410,-500.77782201,0.00029573,5]
[383944890,1757189443419,-150.0,0.00029573,5]
[383944892,1757189443429,-160.42262234,0.00029573,5]
[383944894,1757189443439,-167.97,0.00029644,2]
[383944896,1757189443449,-3292.0,0.00029962,2]
[383944898,1757189443459,-1000.0,0.0003,14]
[383944900,1757189443469,-151.0,0.0003,14]
[383944902,1757189443479,-151.8,0.0003005,2]
[383944904,1757189443488,-20912.62215767,0.0003006,2]
[383944906,1757189443497,-151.0,0.00030072,7]
[383944908,1757189443506,-151.0,0.00030072,7]
[383944910,1757189443515,-151.0,0.00030072,7]
[383944912,1757189443523,-151.0,0.00030072,7]
[383944914,1757189443534,-159.138225,0.00030072,7]
[383944916,1757189443544,-151.0,0.00030072,7]
[383944918,1757189443553,-151.0,0.00030073,7]
[383944920,1757189443563,-151.0,0.00030073,7]
[383944922,1757189443572,-151.0,0.00030073,7]
[383944924,1757189443582,-151.0,0.00030073,7]
[383944926,1757189443592,-151.0,0.00030073,7]
[383944928,1757189443602,-151.0,0.00030073,7]
[383944930,1757189443611,-151.0,0.00030073,7]
[383944932,1757189443622,-151.0,0.00030073,7]
[383944934,1757189443631,-569.0,0.00030109,2]
[383944936,1757189443642,-405.86,0.00030118,2]
[383944938,1757189443651,-1000.0,0.00030121,5]
[383944940,1757189443660,-1000.0,0.00030121,5]
[383944942,1757189443670,-970.56026785,0.00030121,5]
[383944944,1757189443680,-250.0,0.00030121,5]
[383944946,1757189443690,-1166.66666,0.0003013,2]
[383944948,1757189443703,-234.31,0.00030137,2]
[383944950,1757189443714,-164.69,0.00030148,2]
[383944953,1757189443724,-9733.02,0.000302,7]
[383944955,1757189443735,-9296.99,0.000302,2]
[383944957,1757189443746,-187.469581,0.000302,7]
[383944959,1757189443755,-187.469581,0.000302,7]
[383944961,1757189443767,-187.469581,0.000302,7]
[383944963,1757189443778,-187.469581,0.000302,7]
[383944965,1757189443788,-151.0,0.000302,5]
[383944967,1757189443799,-480.885614,0.000302,7]
[383944969,1757189443809,-151.0,0.000302,7]
[383944971,1757189443819,-480.885614,0.000302,7]
[383944973,1757189443829,-151.0,0.000302,7]
[383944975,1757189443839,-480.885614,0.000302,7]
[383944978,1757189443857,-151.0,0.000302,7]
[383944981,1757189443877,-480.885614,0.000302,7]
[383944983,1757189443895,-151.0,0.000302,7]
[383944987,1757189443918,-1166.66667,0.0003025,2]
[383944989,1757189443935,-17377.4873581,0.0003029,2]
[383944992,1757189443953,-6181.8060598,0.0003029,2]
[383944995,1757189443971,-1166.66667,0.0003038,2]
[383944998,1757189443991,-1039.8,0.000304,7]
[383945001,1757189444011,-152.35,0.00030459,2]
[383945004,1757189444028,-315.98,0.000305,30]
[383945007,1757189444049,-1166.66667,0.000305,2]
[383945010,1757189444068,-13291.67777036,0.00030556,2]
[383945013,1757189444081,-1166.66667,0.0003063,2]
[383945016,1757189444102,-1500.0,0.00030668,5]
[383945018,1757189444114,-1001.56083212,0.00030668,5]
[383945021,1757189444133,-350.0,0.00030668,5]
[383945024,1757189444147,-1166.66666,0.0003075,2]
[383945026,1757189444162,-2200.96312224,0.00030754,14]
[383945029,1757189444179,-3873.66848893,0.0003076,2]
[383945032,1757189444195,-150.0,0.0003083,3]
[383945035,1757189444212,-150.0,0.0003083,3]
[383945037,1757189444229,-150.0,0.0003083,3]
[383945040,1757189444245,-150.0,0.0003083,2]
[383945044,1757189444271,-150.0,0.0003083,3]
[383945047,1757189444287,-150.0,0.0003083,3]
[383945050,1757189444303,-150.0,0.0003083,3]
[383945052,1757189444319,-500.0,0.0003083,3]
[383945055,1757189444334,-150.0,0.0003083,3]
[383945057,1757189444349,-150.0,0.0003083,3]
[383945060,1757189444367,-150.0,0.0003083,3]
[383945063,1757189444384,-150.0,0.0003083,3]
[383945066,1757189444398,-500.0,0.0003083,2]
[383945068,1757189444416,-150.0,0.0003083,2]
[383945071,1757189444431,-150.0,0.0003083,2]
[383945074,1757189444447,-500.0,0.0003083,2]
[383945076,1757189444463,-500.0,0.0003083,2]
[383945079,1757189444480,-150.0,0.0003083,2]
[383945082,1757189444495,-500.0,0.0003083,2]
[383945084,1757189444510,-150.0,0.0003083,2]
[383945087,1757189444526,-150.0,0.0003083,2]
[383945090,1757189444542,-150.0,0.0003083,2]
[383945093,1757189444558,-500.0,0.0003083,2]
[383945095,1757189444574,-150.0,0.0003083,2]
[383945098,1757189444590,-150.0,0.0003083,2]
[383945100,1757189444605,-150.0,0.0003083,2]
[383945103,1757189444621,-150.0,0.0003083,2]
[383945106,1757189444637,-150.0,0.0003083,2]
[383945108,1757189444652,-500.0,0.0003083,2]
[383945111,1757189444667,-500.0,0.0003083,2]
[383945113,1757189444683,-150.0,0.0003083,2]
[383945116,1757189444698,-500.0,0.0003083,2]
[383945119,1757189444713,-500.0,0.0003083,2]
[383945121,1757189444727,-5000.0,0.00030948,2]
[383945123,1757189444742,-4403.0,0.0003095,2]
[383945126,1757189444757,-1107.41402264,0.00031059,2]
[383945129,1757189444773,-20912.62215767,0.00031069,2]
[383945131,1757189444788,-292.42,0.00031079,2]
[383945134,1757189444802,-150.0,0.00031104,3]
[383945136,1757189444818,-150.0,0.00031104,2]
[383945139,1757189444833,-150.0,0.00031104,3]
[383945142,1757189444849,-150.0,0.00031104,3]
[383945144,1757189444864,-150.0,0.00031104,3]
[383945147,1757189444879,-553.6227908,0.00031104,3]
[383945149,1757189444895,-150.0,0.00031104,3]
[383945152,1757189444909,-150.0,0.00031104,3]
[383945154,1757189444924,-150.0,0.00031104,3]
[383945157,1757189444939,-150.0,0.00031104,3]
[383945159,1757189444954,-500.0,0.00031104,2]
[383945162,1757189444970,-150.0,0.00031104,2]
[383945164,1757189444984,-500.0,0.00031104,2]
[383945167,1757189444999,-500.0,0.00031104,2]
[383945170,1757189445015,-500.0,0.00031104,2]
[383945172,1757189445030,-150.0,0.00031104,2]
[383945175,1757189445045,-150.0,0.00031104,2]
[383945177,1757189445060,-150.0,0.00031104,2]
[383945180,1757189445075,-150.0,0.00031104,2]
[383945183,1757189445090,-500.0,0.00031104,2]
[383945185,1757189445105,-500.0,0.00031104,2]
[383945188,1757189445120,-150.0,0.00031104,2]
[383945191,1757189445136,-500.0,0.00031104,2]
[383945193,1757189445150,-150.0,0.00031104,2]
[383945196,1757189445166,-500.0,0.00031104,2]
[383945199,1757189445182,-471.79,0.00031193,30]